Cogmind - Beta 16 @@@ ROGUE MODE // 2025.12.15 @ 01:30:00 Player: AngelSpirit Result: Destroyed by A-27 Freighter with PD Laser Performance ------------- Evolutions (5) 2500 Regions Visited (14) 2800 Robots Destroyed (134) 670 Value Destroyed (5984) 5984 Prototype IDs (16) 320 Alien Tech Used (0) 0 Bonus (3924) 3924 TOTAL SCORE: 16198 Bonus ------- High Alert Combat Kills 433 Follower Combat Kills 1409 Entered Garrisons 200 Acquired ECA 300 Met Warlord at Base 500 MAIN.C Attacked Warlord 500 Warlord Defense Kills 750 Friendly Fire -168 Cogmind --------- Core Integrity 0/1000 Matter 295/300 Energy 61/100 System Corruption 5% Temperature Cool (6) Movement Core (50) Location -4/Proximity Caves Parts ------- > --- POWER (2) -------- (None) > --- PROPULSION (4) --- (None) > --- UTILITY (8) ------ Experimental Cryofiber Web Experimental Coolant Injector Improved Signal Interpreter Advanced Hacking Suite > --- WEAPON (3) ------- (None) > --- INVENTORY (5) ---- Experimental Cooling System High-capacity Storage Unit Matter Compressor (250) Encrypted Comm Array Vortex Rifle (35) Peak State ------------ > --- POWER ------------ Antimatter Reactor Reinforced Quantum Reactor > --- PROPULSION ------- Wheel Compact Wheel Compact Wheel Compact Wheel > --- UTILITY ---------- Experimental Cryofiber Web Advanced Heat Sink High-capacity Storage Unit Improved Signal Interpreter Experimental Core Analyzer Advanced Weapon Cycler Centrium Light Armor Plating Improved Hacking Suite > --- WEAPON ----------- Advanced Plasma Cannon Advanced Plasma Cannon Advanced Plasma Cannon > --- INVENTORY -------- Tripod Weapons Platform Wheel Advanced Cooling System Experimental Cooling System Experimental Coolant Injector Matter Compressor Improved Sensor Array Improved Signal Interpreter Encrypted Comm Array Advanced Hacking Suite Minesniffer Drone Bay Cooled Plasma Rifle Vortex Rifle Vortex Rifle Vortex Rifle Shock Bomb Launcher Improved Plasma Cutter [Rating: 101] Favorites ----------- Power Particle Reactor Engine Deuterium Engine Power Core Micro Nuclear Core Reactor Particle Reactor Propulsion Wheel Leg Tripod Weapons Platform Wheel Wheel Utility High-capacity Storage Unit Device Improved Sensor Array Storage High-capacity Storage Unit Processor Improved Signal Interpreter Hackware Advanced Hacking Suite Protection Layered Heavy Armor Plating Weapon Advanced Plasma Cannon Energy Gun Gatling Laser Energy Cannon Advanced Plasma Cannon Ballistic Gun Improved Assault Rifle Ballistic Cannon Improved Light Cannon Launcher Shock Bomb Launcher Impact Weapon Heavy Flail Build | -11 -10 -10 -8 -7 -6 -5 -5 -5 -5 -5 -5 -5 -5 -4 ------- Run | Yrd Mat Sub Mat Fac Fac Fac Was Fac Gar Fac Upp Upp War Pro Slots Evolved 10 | . . . 4 2 2 2 . . . . . . . . Power 1 | . . . . . . 1 . . . . . . . . Propulsion 2 | . . . . 1 1 . . . . . . . . . Utility 6 | . . . 3 1 1 1 . . . . . . . . Weapon 1 | . . . 1 . . . . . . . . . . . Parts Attached 125 | 6 11 6 17 6 10 23 2 1 6 8 7 6 11 5 Power 15 | 1 2 . 2 . 1 5 1 . 1 . 1 . 1 . Engine 6 | 1 1 . 2 . 1 1 . . . . . . . . Core 5 | . 1 . . . . 4 . . . . . . . . Reactor 4 | . . . . . . . 1 . 1 . 1 . 1 . Propulsion 21 | 2 2 1 2 1 1 3 . . 1 4 . 1 1 2 Treads . | . . . . . . . . . . . . . . . Leg 1 | . . . . . . . . . . . . . . 1 Wheel 20 | 2 2 1 2 1 1 3 . . 1 4 . 1 1 1 Hover . | . . . . . . . . . . . . . . . Flight . | . . . . . . . . . . . . . . . Utility 52 | 1 3 1 7 2 5 10 1 1 2 3 3 5 7 1 Device 26 | . 2 1 1 . 3 7 1 . 1 2 2 2 4 . Storage 2 | 1 1 . . . . . . . . . . . . . Processor 5 | . . . 2 . . 1 . . . . 1 . 1 . Hackware 3 | . . . . . . . . 1 . . . . 1 1 Protection 16 | . . . 4 2 2 2 . . 1 1 . 3 1 . Artifact . | . . . . . . . . . . . . . . . Weapon 37 | 2 4 4 6 3 3 5 . . 2 1 3 . 2 2 Energy Gun 12 | . 1 1 2 . 2 3 . . 1 . . . . 2 Energy Cannon 10 | . 1 . . 1 1 1 . . 1 1 3 . 1 . Ballistic Gun 6 | 2 . 1 2 . . . . . . . . . 1 . Ballistic Cannon 3 | . 1 1 . 1 . . . . . . . . . . Launcher 3 | . 1 1 . . . 1 . . . . . . . . Special Weapon . | . . . . . . . . . . . . . . . Impact Weapon 3 | . . . 2 1 . . . . . . . . . . Slashing Weapon . | . . . . . . . . . . . . . . . Piercing Weapon . | . . . . . . . . . . . . . . . Special Melee Weapon . | . . . . . . . . . . . . . . . Unidentified Prototypes 16 | . . . 2 . 2 5 . . . . 1 . 4 2 Corrupted Parts 3 | . . . . . . 2 . . . . . . . 1 System Corruption 17 | . . . . . . 14 . . . . . . . 3 Parts Lost 45 | . 1 1 2 . 1 11 . . 1 1 2 1 4 20 Power 7 | . . . 1 . . 3 . . . . 1 . . 2 Propulsion 14 | . . 1 1 . . 2 . . 1 . 1 . 2 6 Utility 13 | . . . . . . 3 . . . 1 . 1 2 6 Weapon 11 | . 1 . . . 1 3 . . . . . . . 6 Highest Loss Streak 16 | . 1 1 2 . 1 7 . . 1 1 2 1 4 16 To Critical Strikes 1 | . . . . . . . . . . . . . . 1 Average Backups 14 | . 6 9 7 16 17 16 17 18 17 17 16 17 17 14 Power 1 | . 1 2 2 4 4 2 . 1 1 1 . . . . Propulsion 1 | . 1 1 . . . 1 4 4 3 3 2 2 1 . Utility 6 | . 1 2 1 5 7 6 8 8 8 9 8 8 8 7 Weapon 4 | . 2 3 3 6 5 4 3 3 4 3 3 4 5 4 Tool/Special . | . . . . . . . . . . . . . . . Unused Backups 21 | . 1 1 3 . 1 4 1 1 1 . . . 3 5 Power 2 | . . . 1 . . . 1 . . . . . . . Propulsion 1 | . . . 1 . . . . . . . . . . . Utility 7 | . . . . . 1 2 . . 1 . . . 1 2 Weapon 8 | . 1 1 1 . . 1 . 1 . . . . 2 1 Tool/Special 3 | . . . . . . 1 . . . . . . . 2 Average Slot Usage (%) 95 | . 92 99 97 99 99 90 94 94 94 92 93 97 99 80 Engine 2 | . 9 . 7 7 6 2 . . . . . . . . Core 2 | . 4 14 . . . 5 8 5 1 . . . . . Reactor 4 | . . . . . . . 1 5 9 10 10 11 11 6 Wheel 22 | . 28 27 17 23 26 21 23 23 23 23 22 23 22 15 Device 15 | . 7 14 8 7 18 21 23 18 13 18 23 18 17 15 Storage 6 | . 14 14 9 7 6 5 5 5 5 5 5 5 5 4 Processor 5 | . . . 9 7 6 7 5 5 5 5 5 5 5 10 Hackware 1 | . . . . . . . . 4 5 1 . . . 4 Protection 9 | . . . 17 22 14 6 5 5 8 6 4 12 15 4 Energy Gun 5 | . 5 3 . . 10 12 11 11 11 9 . . . 1 Energy Cannon 7 | . 11 4 . 3 1 3 5 5 4 6 15 17 15 12 Ballistic Gun 3 | . 7 5 16 6 . . . . . . . . . . Ballistic Cannon 1 | . 2 13 . 3 1 . . . . . . . . . Impact Weapon 1 | . . . 8 7 5 . . . . . . . . . Peak Build Rating 101 | 6 12 12 29 36 57 83 82 82 86 88 91 97 92 101 Average Rating 59 | 4 8 11 23 34 51 67 79 80 84 83 89 87 85 82 On Entrance 55 | . 6 12 12 29 35 57 78 82 80 84 88 91 85 91 Avg Prop Armor Cover (%) 38 | . . . . . . . . . . . . . . 38 Naked Turns . | . . . . . . . . . . . . . . . Heaviest Build 146 | 12 52 53 70 86 87 92 102 102 121 126 139 146 145 119 Greatest Support 90 | 20 20 26 26 42 58 58 52 52 52 52 46 52 58 90 Greatest Overweight (x) 6 | . 2 5 5 2 1 2 1 1 2 2 3 3 3 6 Average Overweight (x) 1 | . 1 1 2 1 1 1 1 1 1 2 2 2 1 1 Largest Inventory Capacity 20 | 8 20 20 20 20 20 20 20 20 20 20 20 20 20 20 Average Capacity 19 | 7 13 20 20 20 20 20 20 20 20 20 20 20 20 18 Most Carried 20 | . 11 10 10 20 19 20 20 20 20 20 20 20 20 20 Average Carried 15 | . 6 9 7 17 17 17 19 19 19 19 18 19 19 15 Final Capacity 20 | 8 20 20 20 20 20 20 20 20 20 20 20 20 20 5 Final Carried 20 | . 10 8 10 19 17 19 20 20 20 20 18 20 20 5 Class Distribution -------------------- 33% | Scavenger-Skirmisher 30% | Mutant 21% | Scavenger-Tank 6% | Scavenger-Mutant 3% | Assassin Dominant Class ---------------- Mutant | -10/Materials Mutant | -10/Subcaves Mutant | -8/Materials Mutant | -7/Factory Assassin | -6/Factory Scavenger-Skirmisher | -5/Factory Scavenger-Skirmisher | -5/Waste Scavenger-Skirmisher | -5/Factory Scavenger-Tank | -5/Garrison Scavenger-Skirmisher | -5/Factory Scavenger-Skirmisher | -5/Upper Caves Scavenger-Tank | -5/Upper Caves Scavenger-Tank | -5/Warlord Scavenger-Skirmisher | -4/Proximity Caves Resources | -11 -10 -10 -8 -7 -6 -5 -5 -5 -5 -5 -5 -5 -5 -4 ----------- Run | Yrd Mat Sub Mat Fac Fac Fac Was Fac Gar Fac Upp Upp War Pro Matter Collected 3115 | 253 226 187 508 298 372 276 96 39 142 140 137 88 205 148 Remotely . | . . . . . . . . . . . . . . . Salvage Created 7185 | . 612 136 666 190 312 1481 1369 44 661 108 355 348 347 556 Parts 224 | . 29 4 28 6 9 55 7 . 16 12 10 11 15 22 Haulers Intercepted 6 | . 1 . 2 1 1 1 . . . . . . . . Recyclers Shooed 4 | . 1 . 1 . . 2 . . . . . . . . Parts Field Recycled . | . . . . . . . . . . . . . . . Retrieved Matter . | . . . . . . . . . . . . . . . Parts Self-Destructed 45 | . . 1 . . . . . . . . 12 12 . 20 Prevented 8 | . . . . . . . . . . . 4 2 . 2 Parts Restored . | . . . . . . . . . . . . . . . Kills | -11 -10 -10 -8 -7 -6 -5 -5 -5 -5 -5 -5 -5 -5 -4 ------- Run | Yrd Mat Sub Mat Fac Fac Fac Was Fac Gar Fac Upp Upp War Pro Combat Hostiles Destroyed 100 | . 8 5 10 2 5 16 5 1 13 2 6 7 8 12 Melee 2 | . . . 2 . . . . . . . . . . . Guns 32 | . 2 . 3 1 5 8 . . 9 1 2 . . 1 Cannons 31 | . 5 1 1 1 . 1 3 1 2 . 3 6 3 4 AOE 24 | . . 4 3 . . 5 . . . 1 . . 4 7 Classes Destroyed 18 | . 6 2 1 . . 4 1 . 1 . 2 . . 1 Worker 7 | . 1 . 4 . . 2 . . . . . . . . Builder 6 | . . . . . . 4 . . . 2 . . . . Tunneler 1 | . . . . . . 1 . . . . . . . . Hauler 6 | . 1 . 2 1 1 1 . . . . . . . . Recycler 6 | . 2 . 2 . . 2 . . . . . . . . Operator 2 | . 1 . . 1 . . . . . . . . . . Drone 2 | . . . . . . . . . . . . . . 2 Watcher 5 | . 2 . . 1 . 2 . . . . . . . . Swarmer 31 | . . . 3 . 3 5 . . 6 1 2 2 4 5 Grunt 38 | . 8 1 7 2 2 6 . 1 5 . . 4 2 . Brawler 1 | . . . . . . 1 . . . . . . . . Sentry 6 | . . 1 . . . 2 . . . . 2 1 . . Hunter 5 | . . . . . . . . . . . 1 . . 4 Programmer 6 | . . . . . . 2 . . 1 1 . . 2 . Behemoth 2 | . . . . . . . . . 1 . . . . 1 Compactor 5 | . . . . . . . 5 . . . . . . . Subdweller 3 | . . 3 . . . . . . . . . . . . Wasp 1 | . . . . . . . . . 1 . . . . . Mutant 1 | . . . . . . . . . . . 1 . . . Best Kill Streak 11 | . 4 2 4 2 3 11 2 1 4 2 3 4 6 5 Combat Bots Only 6 | . 3 2 3 1 3 6 2 1 4 1 3 4 6 5 Max Kills in Single Turn 3 | . 1 1 3 1 1 3 1 1 2 2 1 1 3 3 Gunslinging 1 | . . . . . . 1 . . 1 . . . . . Exploded 3 | . . 1 3 . . 2 . . . 1 . . 3 3 Melee 1 | . . . 1 . . . . . . . . . . . Uniques/NPCs Destroyed . | . . . . . . . . . . . . . . . Combat | -11 -10 -10 -8 -7 -6 -5 -5 -5 -5 -5 -5 -5 -5 -4 -------- Run | Yrd Mat Sub Mat Fac Fac Fac Was Fac Gar Fac Upp Upp War Pro Hostile Shots Fired 684 | . 47 16 33 2 44 105 . . 24 11 28 13 109 252 Missed 252 | . 15 4 8 1 15 33 . . 7 2 10 6 38 113 Hits 432 | . 32 12 25 1 29 72 . . 17 9 18 7 71 139 Projectile 432 | . 32 12 25 1 29 72 . . 17 9 18 7 71 139 Critical Strikes 14 | . . 1 . . 1 7 . . 1 . 1 . 1 2 Actively Blocked 3 | . . . . . 1 2 . . . . . . . . Damage Taken 8023 | . 429 236 387 17 407 1540 . 5 543 194 379 127 1159 2600 Core 1330 | . 147 73 13 13 76 234 . . 119 15 38 . 132 470 Absorbed by Shields 165 | . . . . . . . . . . . . . 165 . Redirected to Shielding 288 | . . . 62 . 70 156 . . . . . . . . Ignored by Resistances 74 | . . . . 2 . . . . . . . . 72 . Regen/Repaired (Parts) 62 | . . . . . . . 50 . 12 . . . . . Core Remaining (%) 79 | 100 . 12 97 98 91 . . . . . . . . . Volleys Fired 341 | . 65 16 26 6 15 43 22 2 67 15 12 18 10 24 Largest 3 | . 2 2 3 2 2 3 3 3 3 3 3 3 3 3 Hottest 294 | . 100 93 106 93 160 258 258 258 258 276 294 294 294 294 Shots Fired 721 | . 124 31 51 12 30 109 61 7 121 27 36 36 22 54 Gun 389 | . 77 5 44 4 24 93 39 5 66 12 6 . . 14 Cannon 301 | . 46 16 5 8 6 11 22 2 55 12 30 36 18 34 Launcher 31 | . 1 10 2 . . 5 . . . 3 . . 4 6 Special . | . . . . . . . . . . . . . . . Kinetic 134 | . 68 10 45 8 3 . . . . . . . . . Thermal 550 | . 55 11 4 4 27 104 61 7 121 24 36 36 18 42 Explosive 13 | . 1 10 2 . . . . . . . . . . . Electromagnetic 18 | . . . . . . 5 . . . 3 . . 4 6 Entropic 6 | . . . . . . . . . . . . . . 6 Robot Hit Streak 19 | . 12 10 13 4 15 17 19 4 17 15 9 4 8 9 Robot Miss Streak 7 | . 5 2 2 4 1 4 2 3 3 3 3 7 2 2 Penetration Max . | . . . . . . . . . . . . . . . Secondary Targets 10 | . . . 2 . 1 6 . . 1 . . . . . Max Gunslinging Chain 1 | . . . 1 . 1 1 . . 1 . . . . . Shots Hit Robots 487 | . 82 22 45 7 24 78 55 6 69 18 20 14 13 34 Core Hits 275 | . 30 11 27 4 9 57 24 5 39 11 13 10 14 21 Critical Kills 8 | . 1 . 1 1 2 1 . . . . . 1 1 . Critical Parts Destroyed 5 | . . . 1 1 1 2 . . . . . . . . Critical Strikes 16 | . 1 1 2 2 3 4 . . . . . 1 1 1 Burn 2 | . . . . . . 1 . . . . . . . 1 Meltdown 4 | . 1 . . 1 . . . . . . . 1 1 . Destroy 6 | . . . . . 3 3 . . . . . . . . Blast 1 | . . 1 . . . . . . . . . . . . Smash 3 | . . . 2 1 . . . . . . . . . . Melee Attacks 20 | . . . 19 1 . . . . . . . . . . Impact 20 | . . . 19 1 . . . . . . . . . . Slashing . | . . . . . . . . . . . . . . . Piercing . | . . . . . . . . . . . . . . . Sneak Attacks 6 | . . . 5 1 . . . . . . . . . . Combat Hostiles . | . . . . . . . . . . . . . . . Follow-up Attacks . | . . . . . . . . . . . . . . . Damage Inflicted 14205 | . 1015 667 1274 186 574 2645 1724 145 1897 625 573 532 772 1576 Guns 7025 | . 447 42 518 44 463 1925 1195 79 1389 287 112 . . 524 Cannons 4771 | . 525 277 48 70 111 203 529 66 508 253 461 532 457 731 Explosions 1750 | . 43 348 121 . . 517 . . . 85 . . 315 321 Melee 659 | . . . 587 72 . . . . . . . . . . Ramming . | . . . . . . . . . . . . . . . Kinetic 1186 | . 361 190 504 66 65 . . . . . . . . . Thermal 10725 | . 611 129 62 48 509 2322 1724 145 1897 540 573 532 491 1142 Explosive 512 | . 43 348 121 . . . . . . . . . . . Electromagnetic 918 | . . . . . . 323 . . . 85 . . 281 229 Impact 659 | . . . 587 72 . . . . . . . . . . Slashing . | . . . . . . . . . . . . . . . Piercing . | . . . . . . . . . . . . . . . Entropic 205 | . . . . . . . . . . . . . . 205 Highest Corruption 21 | . . . . . . 20 20 20 20 21 21 21 21 5 Average Corruption 17 | . . . . . . 15 20 20 20 20 21 21 4 2 Corruption Purged . | . . . . . . . . . . . . . . . Corruption Blocked 5 | . . . . . . . . . . . 5 . . . Effects 196 | . . . . . . 21 20 8 66 19 26 23 6 7 Message Errors 45 | . . . . . . 3 5 1 13 5 12 4 . 2 Matter Fused 30 | . . . . . . 3 2 2 12 2 1 5 3 . Heat Flow Errors 21 | . . . . . . 2 1 1 8 3 3 2 . 1 Energy Discharges 28 | . . . . . . 2 3 2 13 2 2 2 . 2 Parts Rejected 4 | . . . . . . 2 1 . . . . 1 . . Data Loss (minor) 23 | . . . . . . 4 2 1 9 3 2 1 . 1 Data Loss (major) 13 | . . . . . . 1 1 . 3 1 2 2 3 . Misfires 8 | . . . . . . 1 1 1 1 . 2 1 . 1 Alerts 5 | . . . . . . 1 . . 1 . 2 1 . . Misdirections 3 | . . . . . . . . . 3 . . . . . Weapon Failures 16 | . . . . . . 2 4 . 3 3 . 4 . . Overload Shots 8 | . . . . . . 2 . . 1 . . . . 5 Overflow Damage 421 | . . 1 223 72 . 9 . . 4 60 52 . . . Projectiles 147 | . . . 31 . . . . . 4 60 52 . . . Explosions 10 | . . 1 . . . 9 . . . . . . . . Melee 264 | . . . 192 72 . . . . . . . . . . Knockbacks 5 | . . 2 2 . 1 . . . . . . . . . Impact 1 | . . . 1 . . . . . . . . . . . Kinetic 3 | . . 2 . . 1 . . . . . . . . . Secondary 1 | . . . 1 . . . . . . . . . . . Self-Inflicted Damage 161 | . 2 . 8 . . . . . . . . . . 151 Shots 7 | . 1 . 1 . . . . . . . . . . 5 Rammed . | . . . . . . . . . . . . . . . Targets Rammed . | . . . . . . . . . . . . . . . Kicked . | . . . . . . . . . . . . . . . Crushed . | . . . . . . . . . . . . . . . Highest Temperature 352 | . 287 . 42 171 162 96 132 . 89 . 352 297 240 224 Average Temperature 80 | . 92 . 17 60 55 24 48 . 36 . 135 135 116 88 Received Heat Transfer 1656 | . 246 6 216 9 24 345 . . 69 . 90 36 279 336 Siege Activations . | . . . . . . . . . . . . . . . Martial Activations . | . . . . . . . . . . . . . . . Shielding Activations . | . . . . . . . . . . . . . . . Robots Disrupted . | . . . . . . . . . . . . . . . Combat Hostiles . | . . . . . . . . . . . . . . . Robots Corrupted 3 | . . . 3 . . . . . . . . . . . Combat Hostiles 1 | . . . 1 . . . . . . . . . . . Parts Fried 9 | . . . 3 3 . . . . . . . . 2 1 Impact Corruptions 10 | . . . 9 1 . . . . . . . . . . Robots Melted 13 | . 1 . . 1 . 3 2 . 3 . 1 1 1 . Combat Hostiles 10 | . 1 . . . . 2 2 . 2 . 1 1 1 . Parts Melted 54 | . 2 . . 1 1 19 8 1 7 1 3 3 3 5 Heat Transferred 19488 | . 1298 235 75 74 777 4249 3475 275 3745 925 950 800 750 1860 Parts Sabotaged . | . . . . . . . . . . . . . . . Parts Stolen . | . . . . . . . . . . . . . . . Parts Stripped . | . . . . . . . . . . . . . . . Power Chain Reactions 7 | . . . . . . 3 . . . . . . 1 3 Alert | -11 -10 -10 -8 -7 -6 -5 -5 -5 -5 -5 -5 -5 -5 -4 ------- Run | Yrd Mat Sub Mat Fac Fac Fac Was Fac Gar Fac Upp Upp War Pro Maximum Alert Level 5 | . . . . . . 1 . 1 5 4 . . . . Low Security (%) 67 | 100 100 . 100 100 100 74 100 80 . . . . . . Level 1 4 | . . . . . . 25 . 19 3 . . . . . Level 2 2 | . . . . . . . . . 12 . . . . . Level 3 2 | . . . . . . . . . 11 . . . . . Level 4 10 | . . . . . . . . . 17 100 . . . . Level 5 12 | . . . . . . . . . 54 . . . . . High Security . | . . . . . . . . . . . . . . . Max Security . | . . . . . . . . . . . . . . . Peak Influence 2308 | . 99 . 120 45 100 293 95 285 2308 1436 . . . . Initial 1211 | . . . . 32 . 23 95 . 199 1211 . . . . Average 446 | . 32 . 31 6 25 108 28 57 1469 1317 . . . . Influence Increases 5892 | . 326 40 317 131 187 561 4 295 2349 375 282 204 506 315 Destroy 0b10 Robot/C 2540 | . 160 40 200 40 100 320 . 80 740 140 180 160 180 200 Destroy 0b10 Robot/NC 200 | . 35 . 40 15 5 60 . 5 10 15 . . . 15 Destroy Leader 334 | . 56 . 34 4 22 56 . 20 50 42 10 . . 40 Allied During Kill 1111 | . . . . . . . . 105 709 150 92 44 11 . Successful Hack 182 | . 37 . . 72 . 28 . 21 12 12 . . . . Disable Machine 225 | . . . 15 . 45 30 . 30 105 . . . . . Anti-Garrison Action 450 | . . . . . . . . . 450 . . . . . Destroy Structure 340 | . 8 . 13 . . 22 4 34 243 16 . . . . Lose Combat Pursuer 510 | . 30 . 15 . 15 45 . . 30 . . . 315 60 Influence Decreases 5892 | . 320 46 245 203 139 336 277 10 326 1327 860 416 782 605 Entered New Map 2936 | . . 4 . 40 . 25 178 . 86 1097 502 148 566 290 Time Decay 2082 | . 310 42 228 163 129 231 79 10 . 180 278 198 86 148 Lost Part 374 | . 10 . 17 . 10 80 . . 10 10 20 10 40 167 Lost Ally 500 | . . . . . . . 20 . 230 40 60 60 90 . Squads Dispatched 24 | . 2 . 4 3 3 6 . 2 . 3 . 1 . . Investigation 4 | . 1 . 1 1 . . . . . . . 1 . . Extermination 5 | . . . . 1 1 3 . . . . . . . . Reinforcement 11 | . 1 . 2 1 2 3 . 1 . 1 . . . . Assault 2 | . . . . . . . . . . 2 . . . . Garrison 2 | . . . 1 . . . . 1 . . . . . . Intercept . | . . . . . . . . . . . . . . . Searches Triggered . | . . . . . . . . . . . . . . . Construction Impeded 1 | . . . . . . 1 . . . . . . . . Haulers Reinforced 3 | . . . . . 2 1 . . . . . . . . Active Scanning Responses . | . . . . . . . . . . . . . . . Cargo Convoy Interrupts . | . . . . . . . . . . . . . . . Stealth | -11 -10 -10 -8 -7 -6 -5 -5 -5 -5 -5 -5 -5 -5 -4 --------- Run | Yrd Mat Sub Mat Fac Fac Fac Was Fac Gar Fac Upp Upp War Pro Distress Signals 9 | . 1 . 2 1 . 2 . . . 1 . . 1 1 Communications Jammed . | . . . . . . . . . . . . . . . Distress Signals . | . . . . . . . . . . . . . . . Times Spotted 249 | . 20 6 17 12 14 37 6 5 32 11 10 12 39 28 Peak Tracking Total 21 | . 5 2 5 4 6 13 3 2 5 4 7 4 21 6 Tactical Retreats 15 | . 3 . 1 . 1 1 . . 2 . . . 6 1 Traps | -11 -10 -10 -8 -7 -6 -5 -5 -5 -5 -5 -5 -5 -5 -4 ------- Run | Yrd Mat Sub Mat Fac Fac Fac Was Fac Gar Fac Upp Upp War Pro Traps Triggered 16 | . 1 . 1 . . 4 . . 8 1 . . 1 . Indirectly 1 | . . . . . . . . . . . . . 1 . Trap Hack Attempts . | . . . . . . . . . . . . . . . Triggered . | . . . . . . . . . . . . . . . Disarmed . | . . . . . . . . . . . . . . . Reprogrammed . | . . . . . . . . . . . . . . . Reused . | . . . . . . . . . . . . . . . Traps Extracted . | . . . . . . . . . . . . . . . Installed . | . . . . . . . . . . . . . . . Triggered . | . . . . . . . . . . . . . . . Machines | -11 -10 -10 -8 -7 -6 -5 -5 -5 -5 -5 -5 -5 -5 -4 ---------- Run | Yrd Mat Sub Mat Fac Fac Fac Was Fac Gar Fac Upp Upp War Pro Machines Disabled 30 | . 1 . 1 . 3 2 . 2 15 . 5 1 . . Max in Single Turn 2 | . 1 . 1 . 1 1 . . 2 . 1 1 . . Garrison Relay 5 | . . . . . . . . . 5 . . . . . Phase Generator 1 | . . . . . . . . . 1 . . . . . Machines Repaired . | . . . . . . . . . . . . . . . Machines Dismantled . | . . . . . . . . . . . . . . . Machines Sabotaged . | . . . . . . . . . . . . . . . Overloaded Fab Kills . | . . . . . . . . . . . . . . . Hacking | -11 -10 -10 -8 -7 -6 -5 -5 -5 -5 -5 -5 -5 -5 -4 --------- Run | Yrd Mat Sub Mat Fac Fac Fac Was Fac Gar Fac Upp Upp War Pro Machines Accessed 35 | . 7 . 2 4 1 9 . 1 3 4 . 1 3 . Terminals 21 | . 6 . 1 3 1 4 . . 3 2 . 1 . . Fabricators . | . . . . . . . . . . . . . . . Repair Stations 1 | . . . . . . . . . . 1 . . . . Recycling Units 4 | . 1 . . . . 2 . . . 1 . . . . Scanalyzers 4 | . . . 1 1 . 2 . . . . . . . . Garrison Access 2 | . . . . . . 1 . 1 . . . . . . Total Hacks 84 | . 21 . 7 15 2 19 . 2 5 6 . 4 3 . Successful 34 | . 7 . 1 10 . 5 . 1 1 2 . 4 3 . Failed 49 | . 14 . 6 5 2 13 . 1 4 4 . . . . Catastrophic 8 | . 1 . 2 . . 4 . . 1 . . . . . Database Lockouts 1 | . . . . . . 1 . . . . . . . . Manual 24 | . 17 . . 5 . 2 . . . . . . . . Terminals 55 | . 20 . 5 11 2 6 . . 5 2 . 4 . . Fabricators . | . . . . . . . . . . . . . . . Repair Stations 2 | . . . . . . . . . . 2 . . . . Recycling Units 7 | . 1 . . . . 4 . . . 2 . . . . Scanalyzers 14 | . . . 2 4 . 8 . . . . . . . . Garrison Access 3 | . . . . . . 1 . 2 . . . . . . Terminal Hacks 19 | . 5 . . 6 . . . . 1 . . 4 3 . Record 5 | . . . . . . . . . . . . 4 1 . Part Schematic 2 | . 2 . . . . . . . . . . . . . Robot Schematic 1 | . 1 . . . . . . . . . . . . . Open Door 2 | . . . . . . . . . . . . . 2 . Branch Access Points 2 | . 1 . . 1 . . . . . . . . . . Emergency Access Points 1 | . . . . . . . . . 1 . . . . . Locate Traps 4 | . 1 . . 3 . . . . . . . . . . Registered Components 1 | . . . . 1 . . . . . . . . . . Zone Layout 1 | . . . . 1 . . . . . . . . . . Fabricator Hacks . | . . . . . . . . . . . . . . . Repair Station Hacks 1 | . . . . . . . . . . 1 . . . . Scan Component 1 | . . . . . . . . . . 1 . . . . Recycling Unit Hacks 3 | . 1 . . . . 1 . . . 1 . . . . Retrieve Components 3 | . 1 . . . . 1 . . . 1 . . . . Scanalyzer 7 | . . . 1 3 . 3 . . . . . . . . Retrieve Study 7 | . . . 1 3 . 3 . . . . . . . . Garrison Access Hacks 1 | . . . . . . . . 1 . . . . . . Unlock Access 1 | . . . . . . . . 1 . . . . . . Unauthorized Hacks 3 | . 1 . . 1 . 1 . . . . . . . . Terminals 3 | . 1 . . 1 . 1 . . . . . . . . Botnet 3 | . 1 . . 1 . 1 . . . . . . . . Fabricators . | . . . . . . . . . . . . . . . Repair Stations . | . . . . . . . . . . . . . . . Recycling Units . | . . . . . . . . . . . . . . . Scanalyzers . | . . . . . . . . . . . . . . . Garrison Access . | . . . . . . . . . . . . . . . Data Cores Recovered . | . . . . . . . . . . . . . . . Used . | . . . . . . . . . . . . . . . Hacking Detections 30 | . 7 . 2 4 1 7 . 1 3 4 . 1 . . Full Trace Events 4 | . . . 1 1 . . . . 1 . . 1 . . Feedback Events . | . . . . . . . . . . . . . . . Feedback Blocked . | . . . . . . . . . . . . . . . Robot Schematics Acquired 1 | . 1 . . . . . . . . . . . . . Robots Built . | . . . . . . . . . . . . . . . Authchips . | . . . . . . . . . . . . . . . Time . | . . . . . . . . . . . . . . . Total Robot Build Rating . | . . . . . . . . . . . . . . . Part Schematics Acquired 2 | . 2 . . . . . . . . . . . . . Parts Built . | . . . . . . . . . . . . . . . Authchips . | . . . . . . . . . . . . . . . Time . | . . . . . . . . . . . . . . . Total Part Build Rating . | . . . . . . . . . . . . . . . Part Studies Acquired 7 | . . . 1 3 . 3 . . . . . . . . Parts Repaired . | . . . . . . . . . . . . . . . Time . | . . . . . . . . . . . . . . . Parts Recycled . | . . . . . . . . . . . . . . . Recycled Matter . | . . . . . . . . . . . . . . . Retrieved Matter . | . . . . . . . . . . . . . . . Retrieved Components 17 | . 9 . . . . 1 . . . 7 . . . . Parts Scanalyzed . | . . . . . . . . . . . . . . . Part Schematics Acquired . | . . . . . . . . . . . . . . . Parts Damaged . | . . . . . . . . . . . . . . . Bothacking | -11 -10 -10 -8 -7 -6 -5 -5 -5 -5 -5 -5 -5 -5 -4 ------------ Run | Yrd Mat Sub Mat Fac Fac Fac Was Fac Gar Fac Upp Upp War Pro Used RIF Installer . | . . . . . . . . . . . . . . . Robots Hacked . | . . . . . . . . . . . . . . . Non-combat . | . . . . . . . . . . . . . . . Combat . | . . . . . . . . . . . . . . . Robot Hacks Applied . | . . . . . . . . . . . . . . . Relay Couplers Released 26 | . . . . . . . . . 26 . . . . . Machine Destruction 22 | . . . . . . . . . 22 . . . . . Programmers 4 | . . . . . . . . . 4 . . . . . Fabnet Peak Effective % . | . . . . . . . . . . . . . . . Robots Rewired 11 | . . . . . . . . . 2 . 4 . 5 . Allies Hacked 4 | . . . . . . . . . 1 . . . 3 . Hacks Repelled . | . . . . . . . . . . . . . . . Allies | -11 -10 -10 -8 -7 -6 -5 -5 -5 -5 -5 -5 -5 -5 -4 -------- Run | Yrd Mat Sub Mat Fac Fac Fac Was Fac Gar Fac Upp Upp War Pro Total Allies 33 | . . . . . . . 20 . 4 . 4 . 5 . Largest Group 19 | . . . . . . . 19 19 17 7 5 5 7 . Highest-Rated Group 702 | . . . . . . . 702 702 650 369 282 196 342 . Highest-Rated Ally 80 | . . . . . . . 50 50 80 80 80 80 64 . Initial Warlord ECA Mod 11 | . . . . . . . . . . 11 11 11 11 10 Total Orders . | . . . . . . . . . . . . . . . Ally Attacks 302 | . . . . . . . 32 25 178 21 22 14 10 . Total Damage 8770 | . . . . . . . 561 834 5005 692 984 300 394 . Kills 43 | . . . . . . . 1 6 24 6 4 1 1 . Allies Corrupted 4 | . . . . . . . . . . . 2 . 2 . Allies Melted 1 | . . . . . . . . . 1 . . . . . Intel | -11 -10 -10 -8 -7 -6 -5 -5 -5 -5 -5 -5 -5 -5 -4 ------- Run | Yrd Mat Sub Mat Fac Fac Fac Was Fac Gar Fac Upp Upp War Pro Active Infowar (turns) 6899 | . 1 514 775 828 471 720 310 139 616 369 606 339 977 234 Sensors 6898 | . . 514 775 828 471 720 310 139 616 369 606 339 977 234 Terrain 653 | . . . . . 459 194 . . . . . . . . Structural 1 | . 1 . . . . . . . . . . . . . Robot Analysis Total . | . . . . . . . . . . . . . . . Derelict Logs Recovered 4 | . . . . . . . . . . . 1 2 . 1 Drone Launches 15 | . . . . . . . . . . . . . . 15 Drone Recoveries 9 | . . . . . . . . . . . . . . 9 Exploration | -11 -10 -10 -8 -7 -6 -5 -5 -5 -5 -5 -5 -5 -5 -4 ------------- Run | Yrd Mat Sub Mat Fac Fac Fac Was Fac Gar Fac Upp Upp War Pro Turns Passed 8842 | 40 784 514 778 828 471 804 313 139 1331 369 606 405 977 483 Spaces Moved 6255 | 40 563 394 446 640 318 543 217 117 893 278 435 278 714 379 Core 113 | 1 . . . . . . . . . . . . . 112 Treads . | . . . . . . . . . . . . . . . Legs 3 | . . . . . . . . . . . . . . 3 Wheels 6139 | 39 563 394 446 640 318 543 217 117 893 278 435 278 714 264 Hover . | . . . . . . . . . . . . . . . Flight . | . . . . . . . . . . . . . . . Fastest Speed 50 | 50 80 105 105 98 100 95 95 95 95 105 105 105 100 50 Average Speed 106 | 79 95 109 118 106 100 99 95 95 109 106 113 118 110 95 Slowest Speed 160 | 80 110 155 155 113 100 110 95 95 110 110 120 120 128 160 Overloaded Moves . | . . . . . . . . . . . . . . . Propulsion Burnouts . | . . . . . . . . . . . . . . . Robots Hopped . | . . . . . . . . . . . . . . . Potential Cave-ins . | . . . . . . . . . . . . . . . Cave-ins Triggered . | . . . . . . . . . . . . . . . Exploration Rate (%) 42 | 3 85 20 36 19 10 18 85 5 95 8 59 54 92 50 Regions Visited 14 Branch Regions 5 Pre-discovered Areas 3 | . . 1 . . . . . . . . 1 1 . . Known Exits Taken 8 | . . . 1 1 1 . . 1 . 1 1 1 1 . Unknown Exits Taken 3 | 1 1 1 . . . . . . . . . . . . Scrap Searched 8 | . . 2 . . . . . . . . 3 3 . . Spaces Dug 7 | . . . 4 . . 1 . . . 2 . . . . Terrain Destroyed 217 | . 5 47 12 . . 9 2 . 76 4 12 17 4 29 Melee 4 | . . . 4 . . . . . . . . . . . Projectile 58 | . . . . . . 3 2 . 2 4 12 17 4 14 AOE 155 | . 5 47 8 . . 6 . . 74 . . . . 15 Terrain Rammed . | . . . . . . . . . . . . . . . Walls Destroyed . | . . . . . . . . . . . . . . . Machines Disabled . | . . . . . . . . . . . . . . . Actions | -11 -10 -10 -8 -7 -6 -5 -5 -5 -5 -5 -5 -5 -5 -4 --------- Run | Yrd Mat Sub Mat Fac Fac Fac Was Fac Gar Fac Upp Upp War Pro Total 7783 | 45 698 440 609 774 441 715 267 139 1123 322 534 329 890 457 Wait 598 | . 35 14 70 102 85 68 19 16 69 10 45 21 18 26 Move 6242 | 39 562 393 445 639 317 543 216 116 892 277 434 277 713 379 Hop . | . . . . . . . . . . . . . . . Pick Up 69 | . 11 . 8 12 2 15 2 2 2 1 4 4 5 1 Fast Attach 87 | 6 8 3 15 6 7 17 4 . 1 5 3 2 10 . Attach 41 | . 1 1 4 1 2 10 . . 1 1 5 2 3 10 Detach 8 | . 1 . 1 . . . . . . 1 2 . 2 1 Swap 60 | . 5 9 7 . 3 3 . 1 5 7 3 4 4 9 Drop 105 | . 10 4 14 7 10 16 4 2 3 5 10 1 13 6 Fire 341 | . 65 16 26 6 15 43 22 2 67 15 12 18 10 24 Melee 20 | . . . 19 1 . . . . . . . . . . Ram . | . . . . . . . . . . . . . . . Kick . | . . . . . . . . . . . . . . . Crush . | . . . . . . . . . . . . . . . Escape Stasis 52 | . . . . . . . . . 52 . . . . . Rewire 160 | . . . . . . . . . 31 . 16 . 112 1 Trap . | . . . . . . . . . . . . . . . Miscellaneous . | . . . . . . . . . . . . . . . Route ------- -11/Scrapyard -10/Materials (discovered 5 exits: [*Mat x3] / *Min / [*Sub]) -10/Subcaves -8/Materials (discovered 2 exits: *Fac x2) -7/Factory (discovered 3 exits: *Fac / Low x2) -6/Factory -5/Factory (discovered 2 exits: *Fac / *Upp) -5/Waste -5/Factory -5/Garrison (discovered 3 exits: *Fac x3) -5/Factory -5/Upper Caves -5/Upper Caves -5/Warlord -4/Proximity Caves History --------- Turn | Location | Event 16 | -11/Scrapyard | Discovered new exit (range 15) 41 | -11/Scrapyard | Entered Materials 141 | -10/Materials | Discovered new exit (range 12) 272 | -10/Materials | Discovered new exit (range 7) 300 | -10/Materials | Build established: Mutant 352 | -10/Materials | Core integrity fell below 50% 442 | -10/Materials | Discovered new exit (range 13) 641 | -10/Materials | Derelicts attacked the area 683 | -10/Materials | Identified exit to Mines 686 | -10/Materials | Discovered new exit (range 13) 815 | -10/Materials | Discovered new exit (range 10) 825 | -10/Materials | Entered Subcaves 826 | -10/Subcaves | Approached by a straggling Scientist 886 | -10/Subcaves | Disturbed a concealed Subdweller 909 | -10/Subcaves | Core integrity fell below 20% 979 | -10/Subcaves | Shifting Twisted Machinery released Battle Rifle 1222 | -10/Subcaves | Learned location of Zion (-7) 1222 | -10/Subcaves | Met a Zionite searching for "candidates" 1224 | -10/Subcaves | Discovered new exit (range 13) 1339 | -10/Subcaves | Entered Materials 1339 | -8/Materials | Evolved 4 slots: Utility x3, Weapon x1 1944 | -8/Materials | Discovered new exit (range 11) 2041 | -8/Materials | Met 7R-MNS 2070 | -8/Materials | Garrison activated, responded to threat 2112 | -8/Materials | Discovered new exit (range 4) 2116 | -8/Materials | Identified exit to Factory 2117 | -8/Materials | Entered Factory 2117 | -7/Factory | Evolved 2 slots: Propulsion x1, Utility x1 2118 | -7/Factory | Caught up to 7R-MNS 2140 | -7/Factory | Identified exit to Lower Caves 2938 | -7/Factory | Discovered new exit (range 5) 2944 | -7/Factory | Identified exit to Factory 2945 | -7/Factory | Entered another Factory area 2945 | -6/Factory | Evolved 2 slots: Propulsion x1, Utility x1 2946 | -6/Factory | Caught up to 7R-MNS 3403 | -6/Factory | Discovered new exit (range 13) 3415 | -6/Factory | Identified exit to Factory 3416 | -6/Factory | Entered another Factory area 3416 | -5/Factory | Evolved 2 slots: Power x1, Utility x1 3417 | -5/Factory | Caught up to 7R-MNS 3699 | -5/Factory | Build established: Scavenger-Skirmisher 3747 | -5/Factory | Discovered new exit (range 10) 3812 | -5/Factory | Lost 7 parts (1p2n3u1w) 3831 | -5/Factory | 7R-MNS lamented failing the tripod run 3842 | -5/Factory | System corruption reached 10% 3851 | -5/Factory | Found Corrupted Prototype Leg 3858 | -5/Factory | Identified exit to Factory 3957 | -5/Factory | Lost 4 parts (2p2w) 4069 | -5/Factory | Central database locked down 4189 | -5/Factory | Discovered new exit (range 15) 4201 | -5/Factory | Identified exit to Upper Caves 4220 | -5/Factory | Sucked down chute 4220 | -5/Factory | Entered Waste 4221 | -5/Waste | Met a frightened Derelict 4274 | -5/Waste | Spotted C-40 Crusher 4275 | -5/Waste | Spotted C-40 Crusher 4280 | -5/Waste | Destroyed C-40 Crusher 4288 | -5/Waste | Spotted C-40 Crusher 4291 | -5/Waste | Destroyed C-40 Crusher 4303 | -5/Waste | Allies destroyed C-40 Crusher 4308 | -5/Waste | Spotted C-40 Crusher 4311 | -5/Waste | Spotted C-40 Crusher 4317 | -5/Waste | Spotted C-40 Crusher 4324 | -5/Waste | Destroyed C-40 Crusher 4368 | -5/Waste | Destroyed C-40 Crusher 4386 | -5/Waste | Destroyed C-40 Crusher 4438 | -5/Waste | Warlord forces began an assault 4495 | -5/Waste | Discovered new exit (range 12) 4504 | -5/Waste | Identified exit to Factory 4533 | -5/Waste | Entered Factory 4533 | -5/Factory | Accompanied by 19 allies 4637 | -5/Factory | Garrison activated, responded to threat 4666 | -5/Factory | Identified exit to Garrison 4672 | -5/Factory | Entered Garrison 4672 | -5/Garrison | Accompanied by 17 allies 4761 | -5/Garrison | Garrison Relay disabled 4765 | -5/Garrison | Lost 3 allies 4903 | -5/Garrison | Spotted B-75 Beast 4934 | -5/Garrison | Allies destroyed B-75 Beast 4964 | -5/Garrison | Lost 4 allies 4984 | -5/Garrison | Build established: Scavenger-Tank 4998 | -5/Garrison | Spotted B-75 Beast 5008 | -5/Garrison | Destroyed B-75 Beast 5012 | -5/Garrison | Triggered checkpoint 5018 | -5/Garrison | Triggered checkpoint 5024 | -5/Garrison | Triggered checkpoint 5054 | -5/Garrison | Triggered checkpoint 5076 | -5/Garrison | Triggered checkpoint 5125 | -5/Garrison | Heavy support dispatched to Factory 5144 | -5/Garrison | Garrison Relay disabled 5162 | -5/Garrison | Discovered new exit (range 10) 5398 | -5/Garrison | Phase Generator disabled 5429 | -5/Garrison | Found embedded Infiltrators 5448 | -5/Garrison | Triggered checkpoint 5483 | -5/Garrison | Garrison Relay disabled 5514 | -5/Garrison | Discovered new exit (range 14) 5528 | -5/Garrison | Identified exit to Factory 5593 | -5/Garrison | Discovered exit to Factory (range 15) 5674 | -5/Garrison | Garrison Relay disabled 5686 | -5/Garrison | Build established: Scavenger-Skirmisher 5740 | -5/Garrison | Triggered checkpoint 5770 | -5/Garrison | Garrison Relay disabled 6003 | -5/Garrison | Entered Factory 6003 | -5/Factory | Accompanied by 7 allies 6303 | -5/Factory | First assault squad dispatched 6325 | -5/Factory | Discovered exit to Upper Caves (range 13) 6372 | -5/Factory | Entered Upper Caves 6372 | -5/Upper Caves | Accompanied by 5 allies 6374 | -5/Upper Caves | Attracted the attention of an 0b10 checkpoint 6433 | -5/Upper Caves | Attracted the attention of an 0b10 base 6455 | -5/Upper Caves | Met a Warlord Commander 6456 | -5/Upper Caves | Learned location of Warlord (-5) 6457 | -5/Upper Caves | Warlord Commander delivered Encrypted Comm Array 6460 | -5/Upper Caves | Found Encrypted Comm Array 6481 | -5/Upper Caves | Lost 3 allies 6554 | -5/Upper Caves | Attacked by a delusional Derelict stockpiling Unaware 6777 | -5/Upper Caves | Identified exit to Upper Caves 6978 | -5/Upper Caves | Entered another Upper Caves area 6978 | -5/Upper Caves | Accompanied by 5 allies 6984 | -5/Upper Caves | Encountered a Warlord checkpoint 6986 | -5/Upper Caves | Learned location of 1 exit from Factory 7035 | -5/Upper Caves | Attracted the attention of an 0b10 checkpoint 7036 | -5/Upper Caves | Attracted the attention of an 0b10 base 7119 | -5/Upper Caves | Learned location of Armory (-3) 7119 | -5/Upper Caves | Learned Extension garrison access intel 7354 | -5/Upper Caves | Build established: Scavenger-Tank 7356 | -5/Upper Caves | Learned Factory emergency access door positions 7363 | -5/Upper Caves | Discovered new exit (range 4) 7365 | -5/Upper Caves | Identified exit to Warlord 7383 | -5/Upper Caves | Entered Warlord 7383 | -5/Warlord | Accompanied by 2 allies 7422 | -5/Warlord | System corruption cleaned by Quarantine Array 7474 | -5/Warlord | Met Warlord 7499 | -5/Warlord | Warlord's base attacked by MAIN.C 7603 | -5/Warlord | Found Prototype Device 7603 | -5/Warlord | Identified Minesniffer Drone Bay 7804 | -5/Warlord | Found Prototype Energy Gun 7806 | -5/Warlord | Found Prototype Energy Gun 7811 | -5/Warlord | Found Prototype Energy Gun 7849 | -5/Warlord | Warlord forces counterattacked 7989 | -5/Warlord | Spotted Executioner 8041 | -5/Warlord | Lost 8 allies 8054 | -5/Warlord | Opened side exit 8099 | -5/Warlord | Spotted Executioner 8100 | -5/Warlord | Spotted Executioner 8100 | -5/Warlord | Spotted Executioner 8174 | -5/Warlord | Warlord base infiltrated, sounded retreat 8197 | -5/Warlord | Lost 6 allies 8206 | -5/Warlord | Core integrity fell below 50% 8242 | -5/Warlord | Lost 4 parts (2n2u) 8272 | -5/Warlord | Lost 6 allies 8304 | -5/Warlord | Found Prototype Processor 8304 | -5/Warlord | Identified Exp. Core Analyzer 8307 | -5/Warlord | Found Prototype Device 8307 | -5/Warlord | Identified Adv. Kinecellerator 8310 | -5/Warlord | Spotted Executioner 8315 | -5/Warlord | Spotted Executioner 8342 | -5/Warlord | Discovered new exit (range 9) 8349 | -5/Warlord | Identified exit to Proximity Caves 8356 | -5/Warlord | Lost 4 allies 8360 | -5/Warlord | Entered Proximity Caves 8481 | -4/Proximity Caves | Spotter reported a threat 8538 | -4/Proximity Caves | Unaware initiated a cargo recovery operation 8661 | -4/Proximity Caves | Spotted B-86 Titan 8689 | -4/Proximity Caves | Learned Research stockpile data 8732 | -4/Proximity Caves | Identified Vortex Rifle (x3) 8737 | -4/Proximity Caves | Destroyed B-86 Titan 8764 | -4/Proximity Caves | Identified Tripod Weapons Platform 8765 | -4/Proximity Caves | Attached Tripod Weapons Platform, gained temporary slots: Weapon x2 8786 | -4/Proximity Caves | Core integrity fell below 20% 8819 | -4/Proximity Caves | Lost 16 parts (1p4n5u6w) 8843 | -4/Proximity Caves | Destroyed by A-27 Freighter with PD Laser Last Messages --------------- 08781_ Slug penetrates Minesniffer Drone. 08781_ Dropped Minesniffer Drone Bay. 08781_ >> Lost connection to Minesniffer Drone. 08782_ Penetrated by Slug. 08782_ >> Lost connection to Minesniffer Drone. 08782_ Cld. Plasma Rifle destroyed. 08783_ Penetrated by Slug. 08783_ Slug penetrates Minesniffer Drone. 08783_ Minesniffer Drone cannot be rewired. 08784_ Slug penetrates H-77 Assassin. 08785_ Slug penetrates Minesniffer Drone. 08785_ Penetrated by Slug. 08788_ Critical hit (Destroy). 08788_ Tripod Weapons Platform destroyed. 08788_ Temporary Weapon slot lost. 08790_ Slug penetrates Wall. 08797_ ZLYOTIVDOAD0DZDKVP1EX6I K5O&%30GV 08843_ System corrupted: Energy discharge (-37). Map ----- +----------------------------------------------------+ | ?????????????????????????????????????????????????? | | ?????????????????????????????????????????????????? | | ?????????????????????????????????????????????????? | | ?????????????????????????????????????????????????? | | ?????????????????????????????????????????????????? | | ?????????????????????????????????????????????????? | | ?????????????????????????????????????????????????? | | ?????????????????????????????????????????????????? | | ?????????????????????????????????????????????????? | | ?????????????????????????????????????????????????? | | ?????????????????????????????????????????????????? | | ?????????????????????????????????????????????????? | | ??????????#??????? ????????????#????????????????? | | ????????## ???? ?????????? #???????????????? | | ????? ?? #???????? #???????????????? | | ??? ?? ##?????? #???????????????? | | ? ??? A#???? ###?????????????? | | ? ???? i ##?? ??????????????? | | ? ????? ### ???????????????? | | ?? ?????? ????????????????? | | ??? #?????? #?????????????????? | | ????? #???????# #??????????????????? | | ??????# #????????# ???????????????????? | | ?????## ##?####???# #????????????????????? | | ????## ### ###?# #?????????????????????? | | ????# ### @#??????????????????????? | | ???## #??????????????????????? | | ???# g #??????????????????????? | | ??## #### #??????????????????????? | | ??# ######## #??????????????????????? | | ?# #?## #??????????????????????? | | # ### ##??## ##??????????????????????? | | ???# ##????#####???????????????????????? | | ?????# ## #?????????????????????????????????? | | ???????# ?# #?????????????????????????????????? | | ????????# ?# ##????????????????????????????????? | | ????????# ?# #????????????????????????????????? | | ????????# ?# #????????????????????????????????? | | ????????# ## #????????????????????????????????? | | ####????# # ##???????????????????????????????? | | ##???# #???????????????????????????????? | | ##??###### #???????????????????????????????? | | ##??????# #???????????????????????????????? | | #??????## ##???????????????????????????????? | | ???????# #????????????????????????????????? | | ???????# #????????????????????????????????? | | ????????# #????????????????????????????????? | | #????????# #????????????????????????????????? | | ??####????????# #????????????????????????????????? | | ??????????????# #????????????????????????????????? | +----------------------------------------------------+ Best States ------------- Heat Dissipation 116 Coolant Potential 120 Energy Generation 43 Energy Capacity 590 Matter Stores 300 Matter Capacity 300 Sight Range 16 Robot Scan Range 15 Terrain Scan Range 20 Terrain Scan Density 10 Base Temperature (-) 400 Corruption Block 10 Armor Coverage 825 Resistance: KI 20 Resistance: TH 15 Propulsion Shielding 90 Weapon Shielding 33 Weapon Cycling 25 Evasion (%) 50 Core Analysis 8 Offensive Hacking 14 Item Schematics ----------------- Huge Storage Unit | -10/Materials | Hacked Hcp. Storage Unit | -10/Materials | Hacked Robot Schematics ------------------ M-13 Machinist | -10/Materials | Hacked Fabricated ------------ Nothing Repaired ---------- Nothing Studied --------- Wheel | -8/Materials | Hacked Com. Wheel | -7/Factory | Hacked Grenade Launcher | -7/Factory | Hacked Hvy. Flail | -7/Factory | Hacked Gatling Laser | -5/Factory | Hacked Mic. Nuclear Core | -5/Factory | Hacked Adv. Plasma Cannon | -5/Factory | Hacked Alien Tech Used ----------------- None Achievements -------------- None Challenges ------------ None Game ------ Seed ModifiedSpreadMonowheel Manual? 0 Play Time 01:42:26 Cumulative 295.5 hours Start 2025.12.14 @ 23:50:21 End 2025.12.15 @ 01:30:00 Sessions 1 Manual Loads 0 Difficulty Rogue Special Mode None Game No. 103 Rogue 103 Adventurer 0 Explorer 0 Win Type - Total 2 Types 1/0/0/0/0/0/0/0/0/1 Lore% 73 Gallery% 68 Achievement% 57 Wizard Run 0 Options --------- Layout 1 ASCII 0 Keyboard 0 Movement Mouse Keybinds 0 Fullscreen 2 Font 32/SmallcapsGlow Map View 50x35 Zoom Use 0% Tactical HUD 1 Map Filters NONE Filters NONE Steam 1 RUN: 2d0e8e45-ac37-4cc0-8578-02a6027f7c66